bitfinex/quotes_SOLUSD_20220216
["timestamp","ask_amount","ask_price","bid_price","bid_amount"]
[1645039909201,44.43578398,103.55,103.44,11.98]
[1645039909396,44.43578398,103.55,103.44,14.1254657]
[1645039909798,58.93118398,103.55,103.46,14.495]
[1645039909996,58.93118398,103.55,103.46,26.475]
[1645039910401,58.93118398,103.55,103.46,11.98]
[1645039910595,58.93118398,103.55,103.46,11.48]
[1645039911097,1.36554848,103.53,103.46,11.48]
[1645039911294,47.8951433,103.52,103.44,11.98]
[1645039911895,1.36554848,103.51,103.44,11.98]
[1645039912097,34.64338798,103.5,103.44,11.98]
[1645039912698,34.64338798,103.5,103.42,49.41]
[1645039912903,34.64338798,103.5,103.42,26.4811]
[1645039913318,36.00893646,103.5,103.42,26.4811]
[1645039914219,38.51722018,103.48,103.42,26.4811]
[1645039914417,1.36554848,103.5,103.42,26.4811]
[1645039914619,1.36554848,103.5,103.45,14.4966]
[1645039914821,1.36554848,103.5,103.46,11.98]
[1645039915020,1.36554848,103.51,103.46,11.98]
[1645039915419,42.31938785,103.5,103.46,11.98]
[1645039916018,1.36554848,103.51,103.46,26.4755]
[1645039916219,1.36554848,103.52,103.46,26.4755]
[1645039916823,0.86554848,103.53,103.46,26.4755]
[1645039917021,46.40003399,103.52,103.46,26.4755]
[1645039917622,46.40003399,103.52,103.46,11.98]
[1645039918221,60.89683399,103.52,103.46,11.98]
[1645039919222,60.89683399,103.52,103.42,71.7309]
[1645039919223,60.89683399,103.52,103.42,11.98]
[1645039919622,219.49683399,103.52,103.42,11.98]
[1645039919823,14.5048,103.49,103.42,11.98]
[1645039920023,40.69290964,103.48,103.42,11.98]
[1645039920922,48.3492,103.5,103.42,11.98]
[1645039921127,102.0735,103.53,103.42,26.481]
[1645039921325,5.5067376,103.52,103.42,26.481]
[1645039921823,46.8995035,103.52,103.43,0.25]
[1645039922028,46.8995035,103.52,103.44,11.98]
[1645039922425,78.7207,103.53,103.44,11.98]
[1645039923427,42.71065265,103.52,103.44,11.98]
[1645039923826,42.71065265,103.52,103.45,14.4968]
[1645039924027,42.71065265,103.52,103.46,11.98]
[1645039924930,42.71065265,103.52,103.43,11.98]
[1645039925130,57.20995265,103.52,103.43,11.98]
[1645039925931,59.95333956,103.52,103.43,11.98]
[1645039926129,74.39873956,103.52,103.43,11.98]
[1645039926530,73.89873956,103.52,103.43,11.98]
[1645039927934,8.25133158,103.51,103.43,11.98]
[1645039928135,14.5032,103.49,103.43,11.98]
[1645039928334,34.41533121,103.48,103.43,11.98]
[1645039930034,119.0,103.47,103.39,11.98]
[1645039930238,41.46810217,103.46,103.38,22.8662]
[1645039930435,41.46810217,103.46,103.37,11.98]
[1645039930636,41.46810217,103.46,103.36,11.98]
[1645039930838,41.46810217,103.46,103.36,17.98]
[1645039931439,55.68030217,103.46,103.36,17.98]
[1645039931635,41.46810217,103.46,103.36,23.13813407]
[1645039931836,55.97560217,103.46,103.37,14.5072]
[1645039932037,55.97560217,103.46,103.38,11.98]
[1645039934941,70.13720217,103.46,103.38,11.98]
[1645039937240,55.97560217,103.46,103.38,11.98]
[1645039940147,39.94938691,103.49,103.39,0.72670421]
[1645039940148,43.21398764,103.49,103.39,0.72670421]
[1645039940346,23.0074,103.49,103.39,12.70670421]
[1645039941146,40.65089635,103.48,103.39,27.21190421]
[1645039941349,40.65089635,103.48,103.4,0.25]
[1645039941548,40.65089635,103.48,103.4,12.23]
[1645039941746,40.65089635,103.48,103.41,4.71463978]
[1645039941944,37.5105,103.49,103.41,4.71463978]
[1645039942144,24.087,103.51,103.41,38.66433978]
[1645039942347,24.087,103.51,103.41,40.79837918]
[1645039942946,37.39778625,103.5,103.41,139.12837918]
[1645039944052,78.7207,103.53,103.41,139.12837918]
[1645039944448,78.7207,103.53,103.41,165.00106577]
[1645039944648,49.5691,103.54,103.41,165.00106577]
[1645039945052,37.62286034,103.53,103.41,165.00106577]
[1645039945249,37.62286034,103.53,103.41,169.83306577]
[1645039946049,37.62286034,103.53,103.41,319.56306577]
[1645039946250,22.9542,103.55,103.41,169.83306577]
[1645039946550,99.58218691,103.58,103.47,112.8208]
[1645039946749,99.58218691,103.58,103.48,11.98]
[1645039946975,99.58218691,103.58,103.48,14.1140394]
[1645039947352,99.58218691,103.58,103.49,0.72670421]
[1645039947353,136.2865728,103.58,103.49,0.72670421]
[1645039947557,136.2865728,103.58,103.5,11.98]
[1645039947755,110.47638589,103.58,103.51,3.91742585]
[1645039947954,110.47638589,103.58,103.52,11.98]
[1645039948260,0.71864069,103.59,103.52,11.98]
[1645039948459,0.71864069,103.59,103.52,110.31]
[1645039949159,0.71864069,103.59,103.53,1.52391814]
[1645039949364,0.71864069,103.59,103.54,26.4632]
[1645039952563,40.56214169,103.58,103.54,11.98]
[1645039953063,0.71864069,103.59,103.54,11.98]
[1645039953763,0.71864069,103.59,103.54,18.677]
[1645039954792,0.71864069,103.59,103.54,11.98]
[1645039955194,37.57973577,103.59,103.54,11.98]
[1645039955399,37.57973577,103.59,103.52,4.63694532]
[1645039955594,37.57973577,103.59,103.52,16.61694532]
[1645039955794,0.71864069,103.59,103.52,14.11694532]
[1645039956894,0.71864069,103.59,103.52,28.60394532]
[1645039957193,0.71864069,103.59,103.52,124.797]
[1645039957394,0.71864069,103.59,103.53,0.25]
[1645039957594,0.71864069,103.59,103.53,12.23]
[1645039957997,41.90893759,103.59,103.53,11.98]
[1645039958907,41.90893759,103.59,103.5,74.3181]
[1645039959797,41.90893759,103.59,103.5,77.1079768]
[1645039960600,41.90893759,103.59,103.5,177.5720162]
[1645039961001,0.71864069,103.59,103.5,177.5720162]
[1645039961297,0.71864069,103.59,103.52,14.4856]
[1645039961499,0.71864069,103.59,103.53,11.98]
[1645039962099,43.17316311,103.59,103.53,11.98]
[1645039963203,43.17316311,103.59,103.5,47.8499]
[1645039963601,43.17316311,103.59,103.5,59.8299]
[1645039964201,57.66336311,103.59,103.5,11.98]
[1645039964604,57.66336311,103.59,103.47,2.1340394]
[1645039964605,57.66336311,103.59,103.48,11.98]
[1645039964804,57.66336311,103.59,103.46,11.98]
[1645039965004,57.66336311,103.59,103.47,2.81910447]
[1645039965206,57.66336311,103.59,103.48,11.98]
[1645039965609,57.66336311,103.59,103.49,0.25]
[1645039965906,57.66336311,103.59,103.5,11.98]
[1645039968007,57.66336311,103.59,103.5,28.6036394]
[1645039968809,43.17316311,103.59,103.5,28.6036394]
[1645039969211,43.17316311,103.59,103.52,14.4862]
[1645039969409,43.17316311,103.59,103.52,26.4662]
[1645039970220,0.71864069,103.59,103.53,2.1340394]
[1645039970418,0.71864069,103.59,103.54,26.4629]
[1645039970613,0.71864069,103.59,103.54,33.7389]
[1645039971419,0.71864069,103.59,103.54,35.8729394]
[1645039971616,2.74338691,103.63,103.56,98.33]
[1645039971813,23.9900251,103.69,103.57,11.98]
[1645039971814,78.18318691,103.66,103.57,11.98]
[1645039972015,78.18318691,103.66,103.58,14.4772]
[1645039972216,2.74338691,103.66,103.59,11.98]
[1645039972414,2.74338691,103.67,103.59,11.98]
[1645039972617,45.68146513,103.66,103.59,11.98]
[1645039972816,62.90525204,103.66,103.59,11.98]
[1645039973015,2.74338691,103.67,103.59,11.98]
[1645039973841,17.22348691,103.66,103.59,11.98]
[1645039974043,41.05254813,103.65,103.59,11.98]
[1645039974843,55.53394813,103.65,103.59,11.98]
[1645039975443,63.43094813,103.65,103.57,11.98]
[1645039975646,63.43094813,103.65,103.54,72.2727]
[1645039975845,14.4863,103.61,103.52,11.98]
[1645039976045,45.92729266,103.6,103.51,11.98]
[1645039976249,45.92729266,103.6,103.5,2.1340394]
[1645039976448,45.92729266,103.6,103.5,28.6029394]
[1645039977445,45.92729266,103.6,103.51,0.25]
[1645039978247,45.92729266,103.6,103.51,11.98]
[1645039978850,60.41429266,103.6,103.52,14.487]
[1645039980248,60.41429266,103.6,103.52,16.6210394]
[1645039980456,60.41429266,103.6,103.51,26.4689]
[1645039980653,60.41429266,103.6,103.5,14.1140394]
[1645039981048,60.41429266,103.6,103.5,11.98]
[1645039981249,221.75767957,103.6,103.5,11.98]
[1645039981452,236.26507957,103.6,103.47,11.98]
[1645039981650,236.26507957,103.6,103.45,38.5643]
[1645039981651,158.6,103.58,103.45,38.5643]
[1645039981847,14.4979,103.55,103.45,38.5643]
[1645039982451,45.28341684,103.54,103.45,14.4971]
[1645039982650,45.28341684,103.54,103.44,46.4609]
[1645039982852,45.28341684,103.54,103.43,124.28]
[1645039983053,45.28341684,103.54,103.44,11.98]
[1645039983251,45.28341684,103.54,103.44,14.1140394]
[1645039983452,45.28341684,103.54,103.45,2.87496318]
[1645039983652,45.28341684,103.54,103.45,16.98900258]
[1645039983854,45.28341684,103.54,103.45,14.85496318]
[1645039984057,45.28341684,103.54,103.45,11.98]
[1645039984853,14.4971,103.53,103.45,28.62401527]
[1645039985056,14.4971,103.53,103.45,26.4767]
[1645039985254,14.4971,103.53,103.46,2.84987767]
[1645039985653,14.4971,103.53,103.45,26.4767]
[1645039986558,45.73540235,103.52,103.45,26.4767]
[1645039987157,60.23410235,103.52,103.45,11.98]
[1645039988257,60.23410235,103.52,103.43,114.45817439]
[1645039988860,60.23410235,103.52,103.43,112.3]
[1645039989862,60.23410235,103.52,103.43,114.71279611]
[1645039990867,14.4987,103.52,103.44,2.14731527]
[1645039991065,14.4976,103.53,103.44,14.12731527]
[1645039991770,14.4976,103.53,103.45,0.52854788]
[1645039991991,57.36413846,103.53,103.45,0.52854788]
[1645039992164,14.4976,103.53,103.45,0.52854788]
[1645039992567,14.4964,103.54,103.45,0.52854788]
[1645039993167,42.9039389,103.53,103.45,0.52854788]
[1645039993367,14.4964,103.54,103.45,0.52854788]
[1645039993968,14.4964,103.54,103.45,15.02534788]
[1645039994372,54.7829219,103.54,103.45,15.02534788]
[1645039994768,54.7829219,103.54,103.45,27.00534788]
[1645039995469,24.4264,103.55,103.45,125.33534788]
[1645039995669,24.4264,103.55,103.45,127.48266315]
[1645039996271,23.1877,103.56,103.47,14.4929]
[1645039996470,23.1877,103.56,103.48,2.41279611]
[1645039997270,23.1877,103.56,103.48,14.39279611]
[1645039997473,34.96069972,103.55,103.48,14.39279611]
[1645039997670,34.96069972,103.55,103.48,28.88499611]
[1645039997871,34.96069972,103.55,103.48,14.39279611]
[1645039998473,34.96069972,103.55,103.48,11.98]
[1645039998874,86.1517,103.58,103.48,11.98]
[1645039999276,146.4217,103.58,103.48,11.98]
[1645039999498,247.29282404,103.58,103.46,11.98]
[1645039999902,107.9705122,103.57,103.46,11.98]
[1645040000100,220.7938122,103.57,103.46,11.98]
[1645040000301,206.9399,103.54,103.43,124.28]
[1645040000500,206.9399,103.54,103.42,23.379]
[1645040000501,108.6099,103.54,103.42,23.379]
[1645040000699,111.15102404,103.54,103.42,23.379]
[1645040001102,43.0756191,103.53,103.43,2.63301465]
[1645040001300,57.5776191,103.53,103.43,17.13301465]
[1645040001902,117.8476191,103.53,103.41,35.5187]
[1645040002104,218.71874314,103.53,103.41,11.98]
[1645040002306,60.11874314,103.53,103.41,11.98]
[1645040002503,60.11874314,103.53,103.41,26.4828]
[1645040003102,120.38874314,103.53,103.41,26.4828]
[1645040003302,218.71874314,103.53,103.41,11.98]
[1645040004202,221.46213005,103.53,103.41,11.98]
[1645040005204,221.46213005,103.53,103.38,135.5297]
[1645040005504,14.5065,103.48,103.38,11.98]
[1645040005704,173.1065,103.48,103.36,23.562]
[1645040005907,175.64762404,103.48,103.36,35.542]
[1645040006306,175.64762404,103.48,103.33,4.833]
[1645040006512,14.5155,103.43,103.33,11.98]
[1645040006708,22.8295,103.43,103.32,112.3]
[1645040007007,193.4095,103.43,103.3,2.14731527]
[1645040007208,2.54112404,103.42,103.24,18.05226952]
[1645040007413,170.58,103.41,103.24,18.05226952]
[1645040007607,14.5266,103.37,103.24,8.17945306]
[1645040007807,56.20567958,103.36,103.24,8.17945306]
[1645040008006,58.74680362,103.36,103.24,8.17945306]
[1645040008206,46.76680362,103.36,103.24,8.17945306]
[1645040008407,44.22567958,103.36,103.24,8.17945306]
[1645040009409,14.5237,103.35,103.24,22.70395306]
[1645040009809,48.09293261,103.34,103.24,22.70395306]
[1645040010011,48.09293261,103.34,103.24,34.68395306]
[1645040010209,23.5195,103.38,103.24,34.68395306]
[1645040010609,14.5211,103.37,103.25,2.39731527]
[1645040010809,23.5195,103.38,103.27,14.5199]
[1645040011009,23.5195,103.38,103.27,26.4999]
[1645040011212,24.0994,103.4,103.27,26.4999]
[1645040011413,39.77579555,103.4,103.28,0.83416045]
[1645040011610,39.77579555,103.4,103.29,11.98]
[1645040011811,39.77579555,103.4,103.3,2.10718354]
[1645040012010,39.77579555,103.4,103.3,14.08718354]
[1645040012410,54.29229555,103.4,103.31,14.5138]
[1645040013413,54.29229555,103.4,103.3,11.98]
[1645040013813,14.5142,103.42,103.31,0.25]
[1645040014113,14.6768,103.44,103.32,11.98]
[1645040014519,14.6768,103.44,103.3,36.2232]
[1645040014715,45.91937538,103.43,103.3,38.44348411]
[1645040014913,14.5179,103.4,103.3,38.44348411]
[1645040015115,38.14135335,103.39,103.3,38.44348411]
[1645040015512,38.14135335,103.39,103.3,11.98]
[1645040015714,38.14135335,103.39,103.29,24.2386]
[1645040016313,52.65935335,103.39,103.29,36.2186]
[1645040016513,52.65935335,103.39,103.29,24.2386]
[1645040016716,55.20047739,103.39,103.29,24.2386]
[1645040018214,52.65935335,103.39,103.29,24.2386]
[1645040018614,38.14135335,103.39,103.3,0.25]
[1645040018815,38.14135335,103.39,103.29,36.2186]
[1645040020821,52.66015335,103.39,103.29,36.2186]
[1645040022621,158.6,103.38,103.26,24.668]
[1645040022825,14.5242,103.35,103.26,11.98]
[1645040023019,23.6806,103.37,103.25,112.3]
[1645040023219,23.6806,103.37,103.25,136.75]
[1645040023618,45.77770596,103.36,103.26,2.73015912]
[1645040024420,45.77770596,103.36,103.25,151.2731]
[1645040024622,128.0,103.35,103.25,24.45]
[1645040024821,45.77770596,103.36,103.25,24.45]
[1645040025424,14.5262,103.34,103.25,24.45]
[1645040025624,60.27,103.33,103.24,1.23626952]
[1645040025825,72.25,103.33,103.24,1.23626952]
[1645040026021,60.27,103.33,103.24,1.23626952]
[1645040026222,60.27,103.29,103.24,0.45129056]
[1645040026422,128.0,103.26,103.16,1.50997816]
[1645040026623,128.0,103.24,103.16,1.50997816]
[1645040026920,200.25,103.24,103.16,1.50997816]
[1645040027324,190.81112404,103.23,103.14,1.2342603]
[1645040027622,50.0392058,103.22,103.14,1.2342603]
[1645040028224,38.0592058,103.22,103.14,1.2342603]
[1645040028822,38.0592058,103.22,103.14,3.3825923]
[1645040029022,38.0592058,103.22,103.14,1.2342603]
[1645040029422,52.6035058,103.22,103.14,1.2342603]
[1645040029623,38.0592058,103.22,103.14,1.2342603]
[1645040029824,111.637,103.29,103.14,3.382564]
[1645040030123,11.98,103.28,103.14,3.382564]
[1645040030726,36.7356,103.28,103.14,52.787864]
[1645040031028,42.99858776,103.25,103.14,52.787864]
[1645040031225,42.99858776,103.25,103.14,50.6395603]
[1645040031825,14.5416,103.24,103.14,50.6395603]
[1645040032025,42.99858776,103.25,103.15,2.1483037]
[1645040032224,24.7556,103.28,103.15,2.1483037]
[1645040032425,72.6588,103.29,103.16,11.98]
[1645040032626,14.5145,103.34,103.16,17.98]
[1645040032627,26.4945,103.34,103.16,17.98]
[1645040032825,26.4945,103.34,103.17,2.3983037]
[1645040033129,36.2138284,103.31,103.18,26.5131]
[1645040033326,36.2138284,103.31,103.18,28.6614037]
[1645040033527,36.2138284,103.31,103.19,2.1483037]
[1645040033728,36.2138284,103.31,103.2,11.98]
[1645040034127,36.2138284,103.31,103.21,2.1483037]
[1645040034328,36.2138284,103.31,103.21,14.1283037]
[1645040034732,36.2138284,103.31,103.22,2.1483037]
[1645040035130,36.2138284,103.31,103.21,26.5085]
[1645040035330,36.2138284,103.31,103.21,11.98]
[1645040036129,36.2138284,103.31,103.22,2.1483037]
[1645040036333,50.7449284,103.31,103.22,2.1483037]
[1645040036530,48.05121781,103.35,103.22,2.1483037]
[1645040036732,48.05121781,103.35,103.23,11.98]
[1645040036733,43.21021781,103.35,103.23,11.98]
[1645040036932,43.21021781,103.35,103.23,12.23]
[1645040037133,43.21021781,103.35,103.24,2.1483037]
[1645040037630,47.64783352,103.34,103.24,2.1483037]
[1645040038234,62.17523352,103.34,103.24,2.1483037]
[1645040038430,62.17523352,103.34,103.23,11.98]
[1645040038831,62.17523352,103.34,103.24,2.1483037]
[1645040039032,62.17523352,103.34,103.24,112.4583037]
[1645040039235,57.53963452,103.36,103.25,14.7731]
[1645040039431,20.19803452,103.36,103.25,113.1031]
[1645040039633,24.718,103.38,103.26,2.1483037]
[1645040039933,24.718,103.38,103.27,11.98]
[1645040040334,60.55565751,103.37,103.27,14.1283037]
[1645040040534,46.03325751,103.37,103.27,14.1283037]
[1645040040764,94.3586738,103.41,103.27,112.4583037]
[1645040040940,92.9990691,103.41,103.27,118.6233037]
[1645040041737,72.8043,103.41,103.27,133.1436037]
[1645040041937,72.8043,103.41,103.28,98.33]
[1645040042137,72.8043,103.41,103.29,11.98]
[1645040042338,72.8043,103.41,103.29,14.1283037]
[1645040042536,72.8043,103.41,103.3,2.1483037]
[1645040042738,120.33060293,103.41,103.3,2.1483037]
[1645040042936,120.33060293,103.41,103.31,11.98]
[1645040043340,120.33060293,103.41,103.31,26.4943]
[1645040044137,54.5202047,103.44,103.32,2.1483037]
[1645040044138,6.1966047,103.44,103.32,2.1483037]
[1645040044336,1.3596047,103.44,103.34,14.5103]
[1645040044537,1.3596047,103.45,103.35,11.98]
[1645040044735,146.7282,103.5,103.35,14.1283037]
[1645040044736,1.3596047,103.46,103.35,14.1283037]
[1645040044937,1.3596047,103.47,103.35,14.1283037]
[1645040045136,39.04851704,103.45,103.35,11.98]
[1645040045537,39.04851704,103.45,103.33,11.98]
[1645040045738,1.3596047,103.44,103.33,11.98]
[1645040045944,42.79001006,103.43,103.33,11.98]
[1645040046338,42.79001006,103.43,103.31,121.3298]
[1645040046539,44.14961476,103.43,103.31,121.3298]
[1645040046740,58.66531476,103.43,103.31,121.3298]
[1645040047742,58.66531476,103.43,103.31,46.0949]
[1645040048144,58.66531476,103.43,103.31,48.2432037]
[1645040048347,57.30571006,103.43,103.31,48.2432037]
[1645040048647,57.30571006,103.43,103.31,58.0749]
[1645040048845,57.30571006,103.43,103.31,35.213]
[1645040049046,59.8468341,103.43,103.31,35.213]
[1645040049244,61.2064388,103.43,103.31,35.213]
[1645040049444,58.66531476,103.43,103.31,35.213]
[1645040050047,58.66531476,103.43,103.32,2.1483037]
[1645040050252,57.30571006,103.43,103.32,2.1483037]
[1645040050650,57.30571006,103.43,103.31,35.213]
[1645040050852,59.8468341,103.43,103.31,35.213]
[1645040051050,61.2064388,103.43,103.31,35.213]
[1645040051749,66.0424388,103.43,103.31,35.213]
[1645040051950,224.6424388,103.43,103.31,23.233]
[1645040052354,1.3596047,103.42,103.31,23.233]
[1645040052552,14.5194,103.39,103.31,23.233]
[1645040052752,57.34406925,103.39,103.31,23.233]
[1645040053052,14.5194,103.39,103.31,23.233]
[1645040053254,46.9225,103.42,103.31,25.3813037]
[1645040053653,173.1162,103.41,103.3,23.612]
[1645040053855,174.4758047,103.41,103.27,95.5059]
[1645040054052,97.50145235,103.38,103.27,22.6656]
[1645040054252,195.83145235,103.38,103.27,22.6656]
[1645040054451,198.37257639,103.38,103.27,22.6656]
[1645040055053,37.65782732,103.35,103.27,22.6656]
[1645040055554,48.4146,103.37,103.27,22.6656]
[1645040056179,49.7609047,103.39,103.28,2.1483037]
[1645040056379,100.45652283,103.38,103.27,22.6656]
[1645040056577,100.45652283,103.38,103.26,27.4305]
[1645040057977,14.5204,103.37,103.26,27.4305]
[1645040058177,43.49729784,103.36,103.26,22.5945]
[1645040058779,43.49729784,103.36,103.27,0.25]
[1645040059176,43.49729784,103.36,103.26,22.5945]
[1645040059676,43.49729784,103.36,103.26,24.7428037]
[1645040059876,38.82930875,103.34,103.26,24.7428037]
[1645040060777,48.4177,103.36,103.26,24.7428037]
[1645040061779,14.5235,103.34,103.26,24.7428037]
[1645040061980,45.56710626,103.33,103.26,24.7428037]
[1645040062181,45.56710626,103.33,103.26,22.5945]
[1645040062581,45.56710626,103.33,103.25,23.5187]
[1645040062981,60.09210626,103.33,103.25,23.5187]
[1645040063185,60.09210626,103.33,103.24,50.3709]
[1645040063989,60.09210626,103.33,103.24,38.3909]
[1645040064192,60.09210626,103.33,103.24,23.8663]
[1645040066794,60.09210626,103.33,103.25,2.1483037]
[1645040067295,14.5225,103.35,103.26,0.25]
[1645040067494,1.3596047,103.36,103.26,110.56]
[1645040067693,1.3596047,103.37,103.27,114.9982037]
[1645040068093,1.3596047,103.37,103.28,2.1483037]
[1645040068296,36.0999419,103.36,103.28,2.1483037]
[1645040068494,36.0999419,103.36,103.29,6.0]
[1645040068693,50.6200419,103.36,103.28,2.1483037]
[1645040068901,50.6200419,103.36,103.26,65.0504037]
[1645040069096,210.5796466,103.36,103.24,2.1483037]
[1645040069301,40.67037542,103.33,103.23,22.5399]
[1645040070498,14.5292,103.31,103.23,22.5399]
[1645040070700,14.5292,103.31,103.22,46.4161]
[1645040070900,37.72416303,103.3,103.22,46.4161]
[1645040072902,14.5302,103.29,103.22,46.4161]
[1645040073702,45.19798647,103.28,103.22,46.4161]
[1645040074001,14.5302,103.29,103.22,46.4161]
[1645040074404,14.5302,103.29,103.2,117.14]
[1645040074804,36.28354493,103.28,103.2,117.14]
[1645040075003,14.5339,103.26,103.2,117.14]
[1645040075202,36.28354493,103.28,103.2,117.14]
[1645040075406,48.3562983,103.26,103.2,117.14]
[1645040076605,62.8916983,103.26,103.17,14.535]
[1645040076805,62.8916983,103.26,103.16,24.2907]
[1645040078508,62.8916983,103.26,103.14,15.7732603]
[1645040078712,109.1750983,103.26,103.14,15.7732603]
[1645040080610,169.4450983,103.26,103.14,15.7732603]
[1645040080810,270.31622234,103.26,103.14,1.2342603]
[1645040081013,271.67582704,103.26,103.14,1.2342603]
[1645040081211,269.134703,103.26,103.14,1.2342603]
[1645040081911,2.54112404,103.25,103.14,1.2342603]
[1645040082111,60.27,103.21,103.14,1.2342603]
[1645040082714,42.48936584,103.2,103.14,1.2342603]
[1645040083514,52.62014321,103.2,103.14,1.2342603]
[1645040083914,42.48936584,103.2,103.14,1.2342603]
[1645040085515,57.03636584,103.2,103.14,1.2342603]
[1645040085914,215.63636584,103.2,103.13,0.22645928]
[1645040086114,130.54112404,103.19,103.13,0.11618344]
[1645040086317,46.3988559,103.18,103.13,0.11618344]
[1645040086516,46.3988559,103.18,103.13,0.00882616]
[1645040086716,60.9518559,103.18,103.13,0.00882616]
[1645040086922,11.98,103.17,103.13,0.00882616]
[1645040087117,14.52112404,103.17,103.13,0.00882616]
[1645040087323,6.0,103.14,103.04,1.25421264]
[1645040087527,56.44489562,103.13,103.04,1.25421264]
[1645040087723,58.98601966,103.13,103.04,1.25421264]
[1645040087922,14.5638,103.11,103.04,1.25421264]
[1645040088127,38.63280233,103.1,103.04,1.25421264]
[1645040088331,38.63280233,103.1,103.04,0.25006312]
[1645040088523,38.63280233,103.1,103.04,0.91731676]
[1645040089124,38.90232404,103.12,103.04,0.91731676]
[1645040089125,24.3812,103.12,103.04,0.91731676]
[1645040089325,11.98,103.14,103.04,0.91731676]
[1645040089549,49.4408,103.15,103.04,0.91731676]
[1645040089950,91.27692404,103.18,103.04,11.24908718]
[1645040090156,35.61868518,103.17,103.04,25.80008718]
[1645040090348,35.61868518,103.17,103.05,6.25]
[1645040090751,35.61868518,103.17,103.06,2.1483037]
[1645040091157,35.61868518,103.17,103.05,38.1518]
[1645040091349,35.61868518,103.17,103.06,2.1483037]
[1645040091551,81.44298518,103.17,103.04,1.24278348]
[1645040091750,81.44298518,103.17,103.04,0.74278348]
[1645040091958,81.44298518,103.17,103.04,3.14108718]
[1645040092164,81.44298518,103.17,103.04,9.14108718]
[1645040092655,81.44298518,103.17,103.04,3.14108718]
[1645040092853,81.44298518,103.17,103.04,15.54398348]
[1645040093054,81.44298518,103.17,103.05,2.1483037]
[1645040093453,81.44298518,103.17,103.04,15.54398348]
[1645040093655,81.44298518,103.17,103.04,0.74278348]
[1645040093855,2.54112404,103.16,103.04,0.74278348]
[1645040094055,48.28222961,103.15,103.04,0.74278348]
[1645040094654,48.28222961,103.15,103.05,2.1483037]
[1645040095857,48.28222961,103.15,103.06,0.25]
[1645040096055,48.28222961,103.15,103.06,98.58]
[1645040096256,48.28222961,103.15,103.07,2.1483037]
[1645040096457,73.9942,103.18,103.07,2.1483037]
[1645040096655,24.9273,103.2,103.07,2.1483037]
[1645040096855,24.9273,103.2,103.07,64.5466037]
[1645040097076,183.5273,103.2,103.07,47.851]
[1645040097257,2.54112404,103.19,103.07,47.851]
[1645040097455,103.21546803,103.18,103.07,47.851]
[1645040097658,108.06346803,103.18,103.07,47.851]
[1645040097862,50.33459207,103.18,103.07,47.851]
[1645040098055,47.79346803,103.18,103.07,47.851]
[1645040098255,47.79346803,103.18,103.07,49.9993037]
[1645040098456,47.79346803,103.18,103.07,46.9993037]
[1645040098655,42.94546803,103.18,103.07,46.9993037]
[1645040098855,42.94546803,103.18,103.07,44.851]
[1645040099056,132.29009207,103.18,103.04,0.90814996]
[1645040099258,83.8172,103.17,103.04,0.90814996]
[1645040099456,46.72334231,103.16,103.04,0.90814996]
[1645040099854,46.72334231,103.16,103.04,3.05645366]
[1645040100059,46.72334231,103.16,103.04,0.90814996]
[1645040101660,46.72334231,103.16,103.04,3.05645366]
[1645040102259,23.5472,103.17,103.04,3.05645366]
[1645040102460,23.5472,103.17,103.05,216.63]
[1645040102662,23.5472,103.17,103.05,228.61]
[1645040102861,23.5472,103.17,103.06,2.1483037]
[1645040103062,23.5472,103.17,103.05,130.28]
[1645040103259,45.65502009,103.16,103.05,130.28]
[1645040103461,45.65502009,103.16,103.05,126.4283037]
[1645040103661,45.65502009,103.16,103.05,114.4483037]
[1645040103862,45.65502009,103.16,103.05,136.8804]
[1645040104063,45.65502009,103.16,103.06,2.1483037]
[1645040104460,45.65502009,103.16,103.05,136.8804]
[1645040104662,23.5472,103.17,103.05,24.5804]
[1645040104862,23.5472,103.17,103.06,2.14816493]
[1645040105262,83.8172,103.17,103.05,24.5804]
[1645040105462,158.6,103.16,103.05,24.5804]
[1645040105665,42.09339521,103.15,103.04,0.90814996]
[1645040106163,60.27,103.14,103.04,0.90814996]
[1645040106963,62.81112404,103.14,103.04,0.90814996]
[1645040107162,161.14112404,103.14,103.04,0.90814996]